bitfinex/quotes_ETHUSD_20260121
["timestamp","ask_amount","ask_price","bid_price","bid_amount"]
[1768978998891,8.53415562,2983.5,2982.8,9.03929554]
[1768979000270,0.001,2983.5,2982.8,9.03929554]
[1768979000481,0.001,2983.5,2982.8,9.59429554]
[1768979000681,0.001,2983.5,2982.8,10.15041811]
[1768979000991,8.87988419,2983.5,2982.8,10.15041811]
[1768979002678,0.001,2983.5,2982.9,8.48529554]
[1768979002874,0.001,2983.8,2983.0,8.48529554]
[1768979003182,8.87988419,2983.8,2983.0,8.48529554]
[1768979003913,0.001,2983.8,2983.0,8.48529554]
[1768979004076,0.001,2983.8,2983.0,4.42279946]
[1768979004417,0.001,2983.8,2983.1,8.48529554]
[1768979004615,0.001,2983.8,2983.3,8.48529554]
[1768979005241,0.001,2983.8,2983.3,9.04029554]
[1768979005498,0.001,2983.8,2983.3,9.99972509]
[1768979007482,0.001,2984.0,2983.4,8.48529554]
[1768979008604,0.001,2984.3,2983.4,8.48529554]
[1768979008788,8.87888419,2984.6,2983.4,8.48529554]
[1768979008994,8.87888419,2984.6,2983.6,8.48529554]
[1768979009311,8.87888419,2984.6,2983.8,8.48529554]
[1768979009504,8.87888419,2984.6,2984.0,8.48529554]
[1768979010289,8.87888419,2984.6,2984.0,9.04029554]
[1768979011499,8.87888419,2984.6,2984.0,9.59429554]
[1768979012792,0.0016,2985.1,2984.0,10.14929554]
[1768979012997,8.87888419,2985.0,2984.1,8.48529554]
[1768979013308,0.0016,2985.1,2984.1,8.48529554]
[1768979013615,8.88048419,2985.1,2984.1,8.48529554]
[1768979014020,8.87888419,2984.9,2984.0,1.11]
[1768979014186,8.87888419,2984.7,2984.0,1.664]
[1768979014383,9.77096049,2984.7,2984.0,1.664]
[1768979014606,9.77096049,2984.7,2983.8,9.03929554]
[1768979014607,8.87988419,2984.4,2983.8,9.03929554]
[1768979015322,8.92077005,2984.3,2983.8,9.04029554]
[1768979015526,8.87888419,2984.3,2983.8,9.04029554]
[1768979016023,9.67583036,2984.3,2983.8,9.04029554]
[1768979017028,0.001,2984.4,2983.8,9.04029554]
[1768979017799,0.001,2984.4,2983.8,9.59529554]
[1768979020416,0.001,2984.4,2983.8,10.15029554]
[1768979021025,8.87988419,2984.4,2983.8,10.15029554]
[1768979022461,8.87988419,2984.4,2984.0,8.48529554]
[1768979022831,8.87988419,2984.4,2984.0,9.04029554]
[1768979022832,0.001,2984.4,2984.0,9.04029554]
[1768979023033,0.001,2984.4,2984.1,8.51880648]
[1768979023258,0.001,2984.4,2984.1,8.48529554]
[1768979024284,8.87888419,2985.0,2984.2,8.48529554]
[1768979024442,8.87888419,2984.8,2984.2,8.48529554]
[1768979024981,8.87888419,2984.7,2984.2,8.48529554]
[1768979025280,8.87888419,2984.7,2984.2,9.04029554]
[1768979025580,9.76677261,2984.7,2984.2,9.04029554]
[1768979027450,8.87888419,2984.7,2984.2,9.04029554]
[1768979027778,0.001,2984.8,2984.2,9.59529554]
[1768979028012,0.5546,2985.1,2984.3,8.14676134]
[1768979028183,0.0016,2985.1,2984.3,8.11325265]
[1768979029689,8.90864529,2985.4,2984.4,8.11325265]
[1768979029890,8.90864529,2985.4,2984.6,8.11325265]
[1768979030605,0.553,2985.7,2984.6,8.11325265]
[1768979030606,8.90864529,2985.6,2984.6,8.11325265]
[1768979030916,8.90864529,2985.6,2984.8,8.11325265]
[1768979031117,8.90864529,2985.6,2985.0,8.11325265]
[1768979031315,9.85480982,2985.6,2985.0,8.11325265]
[1768979031782,0.553,2985.7,2985.0,8.11325265]
[1768979031983,9.46164529,2985.7,2985.0,8.11325265]
[1768979032594,9.46164529,2985.7,2985.0,8.66825265]
[1768979035110,9.46164529,2985.7,2985.0,9.22325265]
[1768979036025,8.90864529,2985.5,2985.0,0.75459275]
[1768979036193,8.90864529,2985.5,2984.8,8.66725265]
[1768979037612,8.90864529,2985.5,2984.8,9.22225265]
[1768979038628,0.94616453,2985.6,2984.8,9.22225265]
[1768979038827,9.46164529,2985.7,2984.8,9.22225265]
[1768979039029,9.46164529,2985.7,2985.0,8.11325265]
[1768979039407,0.001,2985.5,2985.0,8.11325265]
[1768979040106,0.001,2985.5,2985.0,8.66825265]
[1768979040309,0.001,2985.5,2985.2,8.11325265]
[1768979040509,0.001,2985.5,2985.2,8.11165266]
[1768979041408,9.46164529,2985.7,2985.3,8.11325265]
[1768979041598,0.553,2985.7,2985.3,8.11325265]
[1768979042723,0.553,2985.7,2985.3,8.66825265]
[1768979043531,9.46164529,2985.7,2985.3,8.66825265]
[1768979043725,0.94616453,2985.6,2985.3,8.66825265]
[1768979043928,9.46164529,2985.7,2985.3,8.66825265]
[1768979045199,9.46164529,2985.7,2985.3,9.22325265]
[1768979046541,9.46164529,2985.7,2985.3,1.11]
[1768979047833,9.46164529,2985.7,2985.3,9.77825265]
[1768979050405,9.46164529,2985.7,2985.3,10.33325265]
[1768979050609,9.46164529,2985.7,2985.5,0.002]
[1768979050831,10.40780982,2985.7,2985.3,10.33325265]
[1768979051138,0.001,2985.5,2985.3,10.33525265]
[1768979051844,0.001,2985.5,2985.3,2.222]
[1768979053044,0.001,2985.5,2985.3,2.777]
[1768979053828,0.001,2985.5,2985.3,10.89025265]
[1768979054932,0.001,2985.5,2985.3,2.777]
[1768979055331,0.001,2985.5,2985.3,11.45315609]
[1768979057833,0.001,2985.5,2985.3,12.00815609]
[1768979060257,0.001,2985.5,2985.3,12.56315609]
[1768979062448,8.7714448,2986.7,2985.5,8.12115609]
[1768979062645,8.7714448,2986.1,2985.6,8.12115609]
[1768979063638,0.553,2986.2,2985.6,8.12115609]
[1768979064946,0.553,2986.2,2985.6,8.67615609]
[1768979065341,9.3244448,2986.2,2985.6,8.67615609]
[1768979066547,9.3244448,2986.2,2985.6,10.0848041]
[1768979066747,0.553,2986.2,2985.6,10.0848041]
[1768979067174,8.7714448,2986.3,2985.6,10.0848041]
[1768979067578,8.7714448,2986.1,2985.6,1.663]
[1768979067873,0.01136709,2985.4,2985.0,0.555]
[1768979068068,7.7761038,2985.3,2985.0,0.555]
[1768979068449,7.78747089,2985.4,2985.0,8.67615609]
[1768979069476,0.01136709,2985.4,2985.0,8.67615609]
[1768979069883,0.01136709,2985.4,2985.0,9.23115609]
[1768979070778,0.01136709,2985.4,2985.0,9.78415609]
[1768979072266,0.26309942,2985.5,2985.3,8.12115609]
[1768979072464,0.553,2986.1,2985.2,8.12115609]
[1768979072465,7.87414081,2986.0,2985.2,8.12115609]
[1768979072661,0.553,2986.1,2985.4,8.12115609]
[1768979072662,7.87062228,2986.1,2985.4,8.12115609]
[1768979073451,7.87062228,2986.3,2985.4,8.12115609]
[1768979073670,7.86952911,2986.1,2985.4,8.12115609]
[1768979074149,7.86952911,2985.9,2985.2,8.12115609]
[1768979074351,7.86952911,2985.9,2985.2,0.554]
[1768979074352,0.04186482,2985.8,2985.2,0.554]
[1768979074561,7.86952911,2985.7,2985.2,0.554]
[1768979074774,7.86952911,2985.7,2985.2,1.109]
[1768979076159,7.86952911,2985.7,2985.5,0.002]
[1768979076385,7.86952911,2985.7,2985.2,0.555]
[1768979076847,7.86952911,2985.7,2985.3,0.002]
[1768979077047,0.001,2985.9,2985.3,8.12315609]
[1768979077260,0.001,2985.9,2985.3,8.67815609]
[1768979078166,7.83997864,2985.9,2985.3,8.67815609]
[1768979078474,7.83897864,2986.2,2985.6,4.85272807]
[1768979078669,8.00456591,2986.5,2985.7,7.94804835]
[1768979078869,8.00456591,2986.3,2985.7,7.94804835]
[1768979079186,8.00456591,2986.1,2985.3,9.6568717]
[1768979079390,9.29448123,2986.1,2985.3,9.6568717]
[1768979079567,0.04186202,2986.0,2985.3,9.23315609]
[1768979079913,8.001118,2985.9,2985.3,1.665]
[1768979080208,8.001118,2985.9,2985.3,1.112]
[1768979081067,8.001118,2985.9,2985.3,9.23315609]
[1768979082193,8.001118,2985.9,2985.3,9.78815609]
[1768979083473,8.93022133,2985.9,2985.3,9.78815609]
[1768979084700,8.93022133,2985.9,2985.3,10.34315609]
[1768979084883,8.93022133,2985.9,2985.3,2.222]
[1768979087299,8.93022133,2985.9,2985.3,11.23209795]
[1768979089577,8.93022133,2985.9,2985.4,0.002]
[1768979089779,7.92199634,2985.7,2985.4,0.002]
[1768979090010,7.92299634,2985.7,2985.4,0.002]
[1768979090313,7.92299634,2985.7,2985.2,0.555]
[1768979090713,7.92299634,2985.7,2985.2,9.01009795]
[1768979091208,7.92299634,2985.7,2985.2,0.555]
[1768979092083,7.92299634,2985.7,2985.2,1.11]
[1768979092821,7.92299634,2985.7,2985.2,9.56509795]
[1768979093926,7.92299634,2985.7,2985.2,1.11]
[1768979094915,7.92299634,2985.7,2985.2,1.665]
[1768979095119,8.85989819,2985.7,2985.2,1.665]
[1768979096885,8.85989819,2985.7,2985.2,10.12009795]
[1768979097090,7.92299634,2985.7,2985.2,10.12009795]
[1768979097320,7.92299634,2985.7,2985.2,10.67509795]
[1768979097816,0.001,2985.7,2985.3,8.45509795]
[1768979098029,0.001,2985.7,2985.3,8.43056861]
[1768979098227,7.94713245,2985.7,2985.2,2.22]
[1768979098829,7.94713245,2985.7,2985.2,10.67509795]
[1768979099930,7.94713245,2985.7,2985.2,11.23009795]
[1768979101536,7.94713245,2985.7,2985.3,8.45509795]
[1768979101711,7.9205341,2985.5,2985.2,2.775]
[1768979102033,5.76184734,2985.1,2984.6,8.45509795]
[1768979102236,5.1445341,2985.1,2984.7,8.45509795]
[1768979102400,5.1445341,2985.3,2984.8,9.01009795]
[1768979102603,5.1445341,2985.3,2984.8,9.56509795]
[1768979104165,4.14017693,2984.8,2984.2,8.45509796]
[1768979104466,0.553,2984.7,2984.2,8.45509796]
[1768979104832,0.553,2984.7,2984.2,9.01009796]
[1768979105161,4.64108733,2984.7,2984.2,0.555]
[1768979105368,7.44393883,2984.5,2984.1,1e-08]
[1768979107466,7.44393883,2984.5,2984.1,0.55500001]
[1768979107633,7.44393883,2984.5,2984.1,0.35218728]
[1768979108051,7.44393883,2984.5,2984.1,8.80728523]
[1768979108650,0.46863869,2984.6,2984.1,8.80728523]
[1768979109365,7.55044314,2984.6,2984.1,8.80728523]
[1768979109762,8.10794291,2984.7,2984.1,8.80728523]
[1768979109963,8.10794291,2984.7,2984.1,9.36228523]
[1768979111933,0.553,2984.7,2984.1,9.36228523]
[1768979112138,0.553,2984.7,2984.2,8.45509795]
[1768979113373,0.001,2984.5,2984.2,8.45509795]
[1768979114575,0.001,2984.5,2984.2,9.01009795]
[1768979117089,0.57404045,2985.3,2984.4,8.70906284]
[1768979117258,8.15856554,2985.4,2984.4,8.70906284]
[1768979119091,8.15856554,2985.4,2984.5,8.70906284]
[1768979119487,0.001,2985.7,2984.6,8.70906284]
[1768979119787,0.554,2985.7,2984.8,8.70906284]
[1768979119957,0.554,2985.7,2985.0,8.70906284]
[1768979120155,8.2212526,2985.7,2985.0,8.70906284]
[1768979120985,7.67226079,2985.6,2985.0,8.70906284]
[1768979121820,0.554,2985.7,2985.0,8.70906284]
[1768979122109,0.001,2985.7,2985.0,9.26406284]
[1768979122695,0.001,2985.7,2985.1,0.554]
[1768979122889,0.001,2985.7,2985.2,8.70906284]
[1768979124510,0.001,2985.7,2985.2,9.26406284]
[1768979124809,0.001,2985.3,2985.2,9.26406284]
[1768979127101,0.001,2985.3,2985.2,9.81906284]
[1768979128114,0.553,2986.0,2985.3,8.70906284]
[1768979129118,7.70710345,2986.1,2985.3,8.70906284]
[1768979129276,4.85272807,2986.6,2985.3,8.70906284]
[1768979129277,8.26444025,2986.3,2985.3,8.70906284]
[1768979129475,8.26444025,2986.3,2985.3,9.26406284]
[1768979129697,8.26444025,2986.3,2985.5,8.70906284]
[1768979129917,0.553,2986.3,2985.5,8.70906284]
[1768979130411,7.71573891,2986.6,2985.5,8.70906284]
[1768979130603,8.26873891,2986.6,2985.5,8.70906284]
[1768979131509,8.26873891,2986.6,2985.6,0.554]
[1768979131723,9.0956128,2986.6,2985.7,8.70906284]
[1768979134387,9.0956128,2986.6,2985.7,9.26406284]
[1768979136816,9.0956128,2986.6,2985.7,9.81906284]
[1768979137013,0.001,2986.4,2985.7,9.81906284]
[1768979138384,0.001,2986.4,2985.8,8.70906284]
[1768979138586,0.001,2986.4,2986.0,8.70906284]
[1768979139389,0.001,2986.4,2986.0,9.26406284]
[1768979139594,7.75366278,2986.9,2986.1,8.70906284]
[1768979139816,8.30666278,2986.9,2986.1,8.70906284]
[1768979140191,7.75366278,2986.9,2986.1,8.70906284]
[1768979141221,7.75703561,2986.7,2986.1,0.553]
[1768979141388,7.79888922,2986.6,2986.0,0.555]
[1768979141589,7.75703561,2986.6,2986.0,9.26406284]
[1768979141785,7.75703561,2986.6,2986.0,9.81906284]
[1768979141986,7.75703561,2986.6,2986.0,1.11]
[1768979142203,7.76031614,2986.4,2986.0,1.11]
[1768979142513,7.76031614,2986.4,2986.0,0.40437053]
[1768979142690,7.76031614,2986.4,2986.0,1e-08]
[1768979144394,7.76031614,2986.4,2986.0,0.55500001]
[1768979145624,7.76031614,2986.4,2986.0,9.37129303]
[1768979146821,8.58326758,2986.5,2986.0,9.37129303]
[1768979147126,7.80756402,2986.5,2986.0,9.92629303]
[1768979147728,0.83066628,2986.9,2986.0,9.92629303]
[1768979147889,0.83066628,2986.9,2986.0,13.27525349]
[1768979148091,8.36320719,2987.0,2986.1,9.02257286]
[1768979148288,0.553,2987.0,2986.3,9.02257286]
[1768979148503,7.81020719,2987.2,2986.3,9.02257286]
[1768979148703,0.001,2986.4,2986.3,9.02257286]
[1768979148897,7.81278309,2987.1,2986.3,9.02257286]
[1768979148898,7.81278309,2987.1,2986.3,10.46534073]
[1768979149617,7.81278309,2987.1,2986.3,11.02034073]
[1768979151106,8.37075305,2987.3,2986.3,11.02034073]
[1768979151924,7.86197739,2987.2,2986.3,11.02034073]
[1768979152098,7.82013219,2987.2,2986.4,9.02257286]
[1768979152298,7.82013219,2987.0,2986.4,9.02257286]
[1768979153810,7.82013219,2987.0,2986.3,2.55276787]
[1768979153811,7.82469956,2986.8,2986.3,1.11]
[1768979154017,7.82469956,2986.7,2986.0,1.11000001]
[1768979154215,7.82469956,2986.5,2986.0,1.11000001]
[1768979154418,7.82469956,2986.5,2986.0,1.66500001]
[1768979154937,7.82469956,2986.5,2986.0,10.68757287]
[1768979155102,8.60716952,2986.5,2986.0,10.68757287]
[1768979157134,7.84947193,2986.7,2986.0,11.24257287]
[1768979157330,8.40247193,2986.9,2986.0,11.24257287]
[1768979157916,8.40247193,2986.9,2986.1,0.03348849]
[1768979158110,8.40247193,2986.9,2986.2,9.02257286]
[1768979158309,1.39324719,2986.9,2986.3,0.03348625]
[1768979158508,0.84024719,2986.9,2986.4,9.02257286]
[1768979159132,0.553,2987.2,2986.4,9.02257286]
[1768979159305,7.85333563,2987.0,2986.1,9.02257286]
[1768979159505,7.85333563,2986.8,2986.1,9.57757286]
[1768979160636,5.40510581,2986.8,2986.1,0.555]
[1768979160808,8.43932912,2986.7,2986.1,0.555]
[1768979161007,8.39747691,2986.7,2986.0,2.22000001]
[1768979161240,7.85496633,2986.5,2986.0,2.22000001]
[1768979161917,7.85496633,2986.5,2986.0,2.77700001]
[1768979163146,8.40812976,2986.7,2986.1,9.02257286]
[1768979164239,8.26847539,2986.6,2986.1,9.02257286]
[1768979164439,8.22662178,2986.6,2986.1,0.555]
[1768979164810,7.87075503,2986.5,2986.1,0.555]
[1768979165338,7.87075503,2986.5,2986.1,9.57757286]
[1768979165739,0.35740742,2986.6,2986.1,9.57757286]
[1768979166913,8.23108201,2986.6,2986.1,10.13257286]
[1768979169249,8.23108201,2986.6,2986.1,10.68757286]
[1768979170047,0.35740742,2986.6,2986.1,10.68757286]
[1768979170223,8.41817159,2986.7,2986.1,10.68757286]
[1768979171821,8.41817159,2986.7,2986.1,11.24257286]
[1768979174225,8.41817159,2986.7,2986.2,9.02257286]
[1768979174427,0.001,2986.5,2986.2,9.02257286]
[1768979176762,0.001,2986.5,2986.2,9.57757286]
[1768979177339,7.89097678,2986.5,2986.2,0.555]
[1768979177556,8.73412552,2986.5,2986.2,0.555]
[1768979179050,8.73412552,2986.5,2986.2,1.11]
[1768979179359,7.89097678,2986.5,2986.2,1.11]
[1768979182163,7.89097678,2986.5,2986.2,1.665]
[1768979182456,7.88997678,2986.5,2986.2,1.665]
[1768979182640,7.88963735,2986.5,2986.2,1.665]
[1768979184762,7.88963735,2986.5,2986.2,2.22]
[1768979185932,7.88963735,2986.5,2986.4,0.002]
[1768979186230,7.88963735,2986.5,2986.2,2.22]
[1768979187247,12.74820435,2986.6,2986.2,2.22]
[1768979187441,12.74820435,2986.6,2986.2,2.775]
[1768979190149,12.74820435,2986.6,2986.2,3.33]
[1768979190351,7.89726569,2986.5,2986.2,3.33]
[1768979193053,7.89726569,2986.5,2986.2,3.885]
[1768979193375,14.13433452,2986.6,2986.2,12.77935954]
[1768979193673,12.75035317,2986.6,2986.2,12.77935954]
[1768979194683,4.85210581,2986.6,2986.2,12.77935954]
[1768979194891,13.29112531,2986.7,2986.2,12.77935954]
[1768979195577,13.29112531,2986.7,2986.2,13.33435954]
[1768979196568,13.29112531,2986.7,2986.3,8.89435954]
[1768979197455,5.39272383,2986.7,2986.3,8.89435954]
[1768979197655,13.2913764,2986.7,2986.3,8.89435954]
[1768979198088,13.2913764,2986.7,2986.4,0.002]
[1768979198284,0.553,2986.8,2986.3,9.44935954]
[1768979198471,13.30486582,2987.1,2986.4,8.89435954]
[1768979199085,7.89866743,2987.0,2986.4,8.89435954]
[1768979199689,5.40621325,2987.1,2986.4,8.89435954]
[1768979200887,13.30485966,2987.1,2986.4,8.89435954]
[1768979201185,13.30485966,2987.1,2986.4,9.44935954]
[1768979201682,0.554,2987.1,2986.4,10.94909549]
[1768979201850,0.001,2987.1,2986.4,10.94909549]
[1768979203558,0.001,2987.1,2986.5,8.89435954]
[1768979204999,12.75132863,2987.1,2986.6,8.89435954]
[1768979205202,12.75132863,2987.1,2986.7,0.553]
[1768979205706,12.75132863,2987.1,2986.7,9.34392322]
[1768979205863,12.75132863,2987.1,2986.7,0.555]
[1768979206067,9.94261299,2987.0,2986.7,0.555]
[1768979207168,8.66748013,2987.0,2986.7,0.555]
[1768979207367,4.85221325,2987.1,2986.7,0.555]
[1768979207704,8.66748013,2987.2,2986.7,9.11643958]
[1768979208264,8.66748013,2987.5,2986.7,9.67143958]
[1768979208610,9.63137054,2987.4,2986.7,9.67143958]
[1768979208764,9.58952814,2987.4,2986.7,9.67143958]
[1768979209967,0.001,2987.1,2986.7,9.67143958]
[1768979210769,0.001,2987.1,2986.7,10.22643958]
[1768979213520,0.001,2987.1,2986.8,8.56143958]
[1768979215684,0.001,2987.1,2986.8,9.11643958]
[1768979218215,0.001,2987.1,2986.8,9.67143958]
[1768979219427,0.001,2987.1,2986.8,1.11]
[1768979220417,8.69058853,2986.7,2986.4,1.11]
[1768979220789,8.69058853,2986.7,2986.4,0.49059931]
[1768979220992,8.69058853,2986.7,2986.3,0.555]
[1768979222129,0.0231084,2986.7,2986.3,9.11643958]
[1768979222336,0.0231084,2986.7,2986.4,8.56143958]
[1768979222902,0.0231084,2986.7,2986.4,9.11643958]
[1768979223557,8.69058853,2986.7,2986.4,0.555]
[1768979224051,0.0231084,2986.7,2986.4,0.555]
[1768979224206,0.0231084,2986.7,2986.4,9.11643958]
[1768979225017,9.55974738,2986.7,2986.1,2.777]
[1768979225221,8.66748013,2986.4,2986.1,2.777]
[1768979227174,8.66748013,2986.4,2986.1,2.75389161]
[1768979227356,8.66748013,2986.4,2986.1,2.73078319]
[1768979228546,8.66748013,2986.4,2986.1,3.28578319]
[1768979230829,8.66748013,2986.4,2986.1,3.84078319]
[1768979231126,4.85221325,2986.5,2986.1,12.40222277]
[1768979231328,8.66748013,2986.6,2986.1,12.40222277]
[1768979233159,8.66748013,2986.6,2986.1,12.95722277]
[1768979234156,8.66748013,2986.6,2986.2,8.56143958]
[1768979234361,5.40621325,2986.9,2986.2,8.56143958]
[1768979234580,0.54062133,2986.8,2986.2,8.56143958]
[1768979234741,9.20810146,2986.8,2986.2,8.56143958]
[1768979235671,9.20810146,2986.8,2986.2,9.11643958]
[1768979238179,9.20810146,2986.8,2986.2,9.67143958]
[1768979241179,9.20810146,2986.8,2986.2,10.22643958]
[1768979241369,10.35957016,2986.7,2986.2,10.22643958]
[1768979242058,10.35957016,2986.7,2986.2,1.665]
[1768979242256,8.9399923,2986.6,2986.2,0.98841064]
[1768979242452,8.89813869,2986.6,2986.2,0.4802034]
[1768979242648,8.89813869,2986.6,2986.2,1e-08]
[1768979242848,8.89813869,2986.4,2986.2,1e-08]
[1768979243542,8.89813869,2986.4,2986.2,0.55500001]
[1768979243745,8.89813869,2986.4,2986.2,0.38678814]
[1768979243952,8.89813869,2986.4,2986.2,1e-08]
[1768979244149,8.89813869,2986.2,2985.7,9.8915148]
[1768979244390,8.89813869,2986.2,2985.7,1.11]
[1768979246180,8.89813869,2986.2,2985.7,1.665]
[1768979246587,8.89813869,2986.2,2985.6,0.555]
[1768979246949,8.89813869,2986.2,2985.6,2e-08]
[1768979247168,0.04115887,2985.6,2985.3,9.3365148]
[1768979248788,0.04115887,2985.6,2985.3,9.8915148]
[1768979251385,0.04115887,2985.6,2985.3,10.4465148]
[1768979253681,0.04115887,2985.6,2985.3,11.0015148]
[1768979253881,8.93929756,2985.6,2985.3,2.22]
[1768979254060,8.93929756,2985.6,2985.3,2.773]
[1768979254386,8.93929756,2985.6,2985.3,2.22]
[1768979255467,9.83322732,2985.6,2985.2,1.11]
[1768979256083,8.93929756,2985.6,2985.2,1.11]
[1768979256385,8.93929756,2985.6,2985.2,1.665]
[1768979257589,8.93929756,2985.6,2985.5,0.002]
[1768979257978,8.93929756,2985.6,2985.3,0.002]
[1768979258695,8.93929756,2985.6,2985.3,0.557]
[1768979259200,0.58881703,2986.4,2985.4,8.7815148]
[1768979259369,8.89813869,2986.3,2985.4,8.7815148]
[1768979261101,0.553,2986.3,2985.4,9.3365148]
[1768979261285,0.553,2986.3,2985.5,8.7815148]
[1768979261475,0.553,2986.3,2985.7,8.7815148]
[1768979262311,9.45113869,2986.3,2985.7,8.7815148]
[1768979262669,0.04185921,2986.2,2985.5,8.7815148]
[1768979263007,8.89813869,2986.1,2985.5,8.7815148]
[1768979263368,8.89813869,2986.1,2985.5,9.3365148]
[1768979264260,8.89813869,2986.1,2985.5,10.41985165]
[1768979265804,8.89813869,2986.1,2985.5,10.97485165]
[1768979268685,8.89813869,2986.1,2985.6,9.23904044]
[1768979268889,9.84255991,2986.3,2985.6,9.23904044]
[1768979269198,0.553,2986.2,2985.6,9.23904044]
[1768979269404,14.14570188,2986.5,2985.6,10.82824046]
[1768979269605,0.553,2986.2,2985.6,9.23904044]
[1768979270576,0.001,2985.9,2985.6,9.23904044]
[1768979271185,0.001,2985.9,2985.6,9.79404044]
[1768979273317,0.001,2985.9,2985.8,9.23904044]
[1768979276016,0.001,2985.9,2985.8,9.79404044]
[1768979277916,4.85614197,2986.5,2985.8,9.79404044]
[1768979278211,0.553,2986.4,2985.9,9.23904044]
[1768979278606,9.84255991,2986.4,2985.9,9.23904044]
[1768979279912,9.28955991,2986.4,2985.9,9.23904044]
[1768979280111,0.001,2986.5,2985.9,10.27394448]
[1768979280311,0.554,2986.5,2985.9,10.27394448]
[1768979280806,0.554,2986.5,2985.9,10.82894448]
[1768979281118,0.001,2986.5,2985.9,10.82894448]
[1768979281333,0.001,2986.5,2986.0,9.23904044]
[1768979281625,0.001,2986.5,2986.2,9.23904044]
[1768979283336,0.001,2986.5,2986.2,9.79404044]
[1768979285632,0.001,2986.5,2986.2,10.34904044]
[1768979288727,0.001,2986.5,2986.2,10.90404044]
[1768979291411,0.001,2986.5,2986.2,11.45904044]
[1768979293900,0.001,2986.5,2986.2,12.01404044]
[1768979294224,0.001,2986.5,2986.2,2.775]
[1768979294531,0.001,2986.5,2986.3,9.23904044]
[1768979296431,0.001,2986.5,2986.3,9.79404044]
[1768979298906,0.001,2986.5,2986.3,10.34904044]
[1768979301738,0.001,2986.5,2986.3,10.90404044]
[1768979304033,0.001,2986.5,2986.3,11.45904044]
[1768979304939,8.81588417,2986.9,2986.4,8.67739328]
[1768979305242,8.81588417,2987.1,2986.4,8.67739328]
[1768979305446,8.81588417,2987.3,2986.4,8.67739328]
[1768979305643,0.553,2987.2,2986.6,8.67739328]
[1768979306432,0.553,2987.2,2986.6,9.23239328]
[1768979307550,8.81588417,2987.3,2986.6,9.23239328]
[1768979307728,9.36888417,2987.3,2986.6,9.23239328]
[1768979308042,8.81588417,2987.3,2986.6,9.23239328]
[1768979308220,8.81588417,2987.3,2986.8,8.67739328]
[1768979308403,8.81588417,2987.3,2986.6,9.23239328]
[1768979308837,8.81588417,2987.3,2986.6,9.78739328]
[1768979311362,8.81588417,2987.3,2986.6,10.34239328]
[1768979313660,8.81588417,2987.3,2986.6,2.22]
[1768979314148,8.81588417,2987.3,2986.6,10.89739328]
[1768979315150,8.81588417,2987.3,2986.7,8.67739328]
[1768979316532,8.81588417,2987.3,2986.7,9.23239328]
[1768979316862,8.81588417,2987.0,2986.6,2.22]
[1768979317233,13.67102614,2987.1,2986.6,10.89739328]
[1768979317630,8.81588417,2987.0,2986.6,10.89739328]
[1768979318265,0.001,2986.9,2986.6,10.89739328]
[1768979319135,0.001,2986.9,2986.6,11.45239328]
[1768979319649,0.001,2986.9,2986.6,2.775]
[1768979321836,8.81688417,2986.9,2986.6,3.33]
[1768979324675,8.81688417,2986.9,2986.6,3.885]
[1768979326886,8.63032714,2986.6,2986.3,2.22]
[1768979328583,8.63032714,2986.6,2986.3,2e-08]
[1768979329361,8.63032714,2986.6,2986.2,2.775]
[1768979329860,8.63032714,2986.6,2986.5,0.002]
[1768979330172,9.97840705,2986.6,2986.3,0.002]
[1768979330374,9.97840705,2986.6,2986.2,2.775]
[1768979330889,0.553,2986.8,2986.3,9.22717347]
[1768979331068,9.18332714,2986.8,2986.3,9.22717347]
[1768979331473,8.63032714,2986.8,2986.3,9.22717347]
[1768979331963,8.63032714,2986.8,2986.3,9.78217347]
[1768979332762,9.18432714,2986.9,2986.3,9.78217347]
[1768979334786,9.18432714,2986.9,2986.3,10.33717347]
[1768979335700,10.10275985,2986.9,2986.3,10.33717347]
[1768979336404,9.54975985,2986.9,2986.3,10.33717347]
[1768979336563,10.10275985,2986.9,2986.3,10.33717347]
[1768979337383,10.10275985,2986.9,2986.3,10.89217347]
[1768979340384,10.10275985,2986.9,2986.3,11.44717347]
[1768979341812,0.001,2986.7,2986.3,11.44717347]
[1768979342781,0.001,2986.7,2986.3,12.00217347]
[1768979345287,0.001,2986.7,2986.3,12.55717347]
[1768979347631,0.001,2986.7,2986.3,13.11217347]
[1768979348338,8.63132714,2986.7,2986.3,13.11217347]
[1768979349896,0.001,2986.7,2986.4,9.22717347]
[1768979351415,0.001,2986.7,2986.3,13.66717347]
[1768979353242,0.001,2986.7,2986.3,14.22217347]
[1768979353536,0.001,2986.5,2986.3,14.22217347]
[1768979355635,0.001,2986.5,2986.3,14.77717347]
[1768979357918,0.001,2986.5,2986.3,15.33217347]
[1768979360642,0.001,2986.5,2986.3,15.88717347]
[1768979361544,0.001,2986.7,2986.4,8.911599]
[1768979363254,0.001,2986.7,2986.4,0.555]
[1768979364349,0.001,2986.7,2986.4,9.466599]
[1768979364844,0.001,2986.7,2986.4,0.555]
[1768979365046,9.09418437,2986.7,2986.4,0.555]
[1768979365551,0.001,2986.5,2986.4,1.11]
[1768979368057,0.001,2986.5,2986.4,1.665]
[1768979370475,0.001,2986.5,2986.4,2.22]
[1768979373039,0.001,2986.5,2986.4,2.775]
[1768979375470,0.001,2986.5,2986.4,3.33]
[1768979375632,9.09318437,2987.0,2986.5,8.911599]
[1768979376035,9.09318437,2987.0,2986.4,12.241599]
[1768979377287,0.001,2986.5,2986.4,12.241599]
[1768979377890,0.001,2986.5,2986.4,12.796599]
[1768979378698,0.001,2986.5,2986.2,2.775]
[1768979378699,9.09418437,2986.5,2986.2,2.775]
[1768979378899,9.09418437,2986.5,2985.5,1.665]
[1768979378900,4.00681009,2986.0,2985.5,1.665]
[1768979379190,4.00681009,2986.0,2985.5,10.576599]
[1768979379362,0.553,2986.3,2985.5,10.576599]
[1768979379694,2.89781009,2986.5,2985.6,8.9450931]
[1768979379695,3.45081009,2986.5,2985.6,8.9450931]
[1768979379893,0.554,2986.5,2985.8,8.911599]
[1768979380093,3.16248656,2986.5,2985.8,8.911599]
[1768979382786,3.16248656,2986.5,2985.8,9.466599]
[1768979385324,3.16248656,2986.5,2985.8,10.021599]
[1768979387694,3.16248656,2986.5,2985.8,10.576599]
[1768979388720,3.53403522,2986.5,2985.8,10.576599]